[Event "Early-Titled-Tuesday-Blitz-September-12-2023"]
[Site "Chess.com"]
[Date "2023.09.12"]
[Round "9"]
[White "GaalZsoka"]
[Black "Mesa_1"]
[Result "0-1"]
[WhiteElo "2478"]
[BlackElo "2607"]
[TimeControl "180+1"]
[EndTime "9:46:30 PDT"]
[Termination "Mesa_1 won by resignation"]

1. Nf3 {[%clk 0:03:00.9]} 1... g6 {[%clk 0:02:55.2]} 2. g3 {[%clk 0:02:59.8]}
2... Bg7 {[%clk 0:02:55.7]} 3. Bg2 {[%clk 0:03:00.4]} 3... e5 {[%clk 0:02:56.3]}
4. O-O {[%clk 0:03:00.5]} 4... d5 {[%clk 0:02:57]} 5. c4 {[%clk 0:03:00.1]} 5...
dxc4 {[%clk 0:02:54.8]} 6. Na3 {[%clk 0:02:51.1]} 6... Nc6 {[%clk 0:02:41.5]} 7.
Nxc4 {[%clk 0:02:50.8]} 7... Nge7 {[%clk 0:02:42.2]} 8. d3 {[%clk 0:02:50.6]}
8... O-O {[%clk 0:02:39.5]} 9. Bd2 {[%clk 0:02:48.7]} 9... Be6 {[%clk
0:02:37.6]} 10. Bc3 {[%clk 0:02:48.9]} 10... f6 {[%clk 0:02:38.2]} 11. a4 {[%clk
0:02:44.1]} 11... Qd7 {[%clk 0:02:35.2]} 12. a5 {[%clk 0:02:43.8]} 12... Rad8
{[%clk 0:02:34.2]} 13. a6 {[%clk 0:02:43]} 13... b6 {[%clk 0:02:27.4]} 14. Nfd2
{[%clk 0:02:43.2]} 14... Bd5 {[%clk 0:02:23.8]} 15. Ne3 {[%clk 0:02:35.6]} 15...
Bxg2 {[%clk 0:02:22.4]} 16. Kxg2 {[%clk 0:02:36.5]} 16... Kh8 {[%clk 0:02:17.8]}
17. h4 {[%clk 0:02:35.2]} 17... Nd4 {[%clk 0:02:00.4]} 18. h5 {[%clk 0:02:32.3]}
18... gxh5 {[%clk 0:01:59.5]} 19. Rh1 {[%clk 0:02:29.3]} 19... Bh6 {[%clk
0:01:36]} 20. Rxh5 {[%clk 0:02:21.4]} 20... Bxe3 {[%clk 0:01:36.2]} 21. fxe3
{[%clk 0:02:22.3]} 21... Ndf5 {[%clk 0:01:35.6]} 22. Nc4 {[%clk 0:02:10.2]}
22... Nd5 {[%clk 0:01:00.1]} 23. Qh1 {[%clk 0:02:03.2]} 23... Ndxe3+ {[%clk
0:00:52.7]} 24. Nxe3 {[%clk 0:02:04.1]} 24... Nxe3+ {[%clk 0:00:53.2]} 25. Kf3
{[%clk 0:01:56.9]} 25... Nd5 {[%clk 0:00:42.4]} 26. Qh4 {[%clk 0:01:50.3]} 26...
Rg8 {[%clk 0:00:29.5]} 27. Rh1 {[%clk 0:01:46.4]} 27... Rg7 {[%clk 0:00:30.2]}
28. Qe4 {[%clk 0:01:31.1]} 28... Kg8 {[%clk 0:00:24.2]} 29. Kf2 {[%clk
0:01:22.9]} 29... Nxc3 {[%clk 0:00:20.2]} 30. bxc3 {[%clk 0:01:22.9]} 30... Qf7
{[%clk 0:00:15.7]} 31. Qf5 {[%clk 0:01:16.1]} 31... c5 {[%clk 0:00:16]} 32. Rh6
{[%clk 0:01:16.4]} 32... Rf8 {[%clk 0:00:14.4]} 33. c4 {[%clk 0:01:14.6]} 33...
Qe7 {[%clk 0:00:14.9]} 34. Ke1 {[%clk 0:01:09.1]} 34... Rff7 {[%clk 0:00:14.6]}
35. Kd2 {[%clk 0:01:08.4]} 35... Rf8 {[%clk 0:00:15.2]} 36. R1h4 {[%clk
0:01:04.3]} 36... Rff7 {[%clk 0:00:15.7]} 37. Rg4 {[%clk 0:01:03.1]} 37... Rxg4
{[%clk 0:00:15.7]} 38. Qxg4+ {[%clk 0:01:04]} 38... Rg7 {[%clk 0:00:12]} 39. Qf5
{[%clk 0:00:58.1]} 39... Rf7 {[%clk 0:00:09.7]} 40. Qc8+ {[%clk 0:00:56.5]}
40... Kg7 {[%clk 0:00:09.4]} 41. Rh4 {[%clk 0:00:52.6]} 41... Qd7 {[%clk
0:00:09.2]} 42. Qa8 {[%clk 0:00:42.4]} 42... f5 {[%clk 0:00:06]} 43. Qf3 {[%clk
0:00:40.3]} 43... Rf6 {[%clk 0:00:05.7]} 44. Qh5 {[%clk 0:00:39.4]} 44... h6
{[%clk 0:00:06.3]} 45. g4 {[%clk 0:00:31.8]} 45... e4 {[%clk 0:00:05]} 46. g5
{[%clk 0:00:29.4]} 46... Rg6 {[%clk 0:00:05.3]} 47. gxh6+ {[%clk 0:00:28.5]}
47... Kh7 {[%clk 0:00:06.1]} 48. Qxg6+ {[%clk 0:00:18.4]} 48... Kxg6 {[%clk
0:00:05.6]} 49. h7 {[%clk 0:00:18.9]} 49... e3+ {[%clk 0:00:06.3]} 50. Kc2
{[%clk 0:00:08.3]} 50... Qxh7 {[%clk 0:00:06.6]} 51. Rxh7 {[%clk 0:00:09]} 51...
Kxh7 {[%clk 0:00:07.4]} 52. d4 {[%clk 0:00:09.1]} 52... cxd4 {[%clk 0:00:07.2]}
53. Kd3 {[%clk 0:00:09.7]} 53... Kg6 {[%clk 0:00:06.2]} 54. Kxd4 {[%clk
0:00:10.3]} 54... f4 {[%clk 0:00:06.9]} 55. Ke4 {[%clk 0:00:08.9]} 55... Kg5
{[%clk 0:00:07.2]} 56. Ke5 {[%clk 0:00:07.3]} 56... Kg4 {[%clk 0:00:07.4]} 57.
Kd6 {[%clk 0:00:07.5]} 57... f3 {[%clk 0:00:07.5]} 58. exf3+ {[%clk 0:00:08.2]}
58... Kxf3 {[%clk 0:00:08.4]} 59. Kc7 {[%clk 0:00:08.9]} 59... e2 {[%clk
0:00:09]} 60. Kb7 {[%clk 0:00:09.6]} 60... e1=Q {[%clk 0:00:09.7]} 61. Kxa7
{[%clk 0:00:10]} 61... Qb4 {[%clk 0:00:09.9]} 62. Kb7 {[%clk 0:00:09.5]} 62...
Qxc4 {[%clk 0:00:10.1]} 63. Kxb6 {[%clk 0:00:09.8]} 63... Qd5 {[%clk 0:00:10]}
64. Ka7 {[%clk 0:00:09.1]} 64... Qc6 {[%clk 0:00:10.5]} 65. Kb8 {[%clk
0:00:08.6]} 65... Qxa6 {[%clk 0:00:11.1]} 0-1

[Event "Early-Titled-Tuesday-Blitz-September-12-2023"]
[Site "Chess.com"]
[Date "2023.09.12"]
[Round "9"]
[White "kleopl"]
[Black "grzechu96"]
[Result "1-0"]
[WhiteElo "2531"]
[BlackElo "2641"]
[TimeControl "180+1"]
[EndTime "9:46:35 PDT"]
[Termination "kleopl won by resignation"]

1. e4 {[%clk 0:03:00.9]} 1... c5 {[%clk 0:02:48.3]} 2. Nc3 {[%clk 0:02:59.9]}
2... a6 {[%clk 0:02:46]} 3. Nf3 {[%clk 0:02:58.9]} 3... d6 {[%clk 0:02:45.3]} 4.
a4 {[%clk 0:02:56.9]} 4... Nf6 {[%clk 0:02:44.3]} 5. Bc4 {[%clk 0:02:53.6]} 5...
e6 {[%clk 0:02:44.4]} 6. O-O {[%clk 0:02:52.5]} 6... Be7 {[%clk 0:02:44]} 7. d3
{[%clk 0:02:39.6]} 7... O-O {[%clk 0:02:41.8]} 8. Bg5 {[%clk 0:02:33.5]} 8...
Nc6 {[%clk 0:02:31.8]} 9. Re1 {[%clk 0:02:33]} 9... Ng4 {[%clk 0:02:21.4]} 10.
Bxe7 {[%clk 0:02:25.5]} 10... Qxe7 {[%clk 0:02:20.7]} 11. d4 {[%clk 0:02:17.8]}
11... cxd4 {[%clk 0:02:00.5]} 12. Nxd4 {[%clk 0:01:32.9]} 12... Qh4 {[%clk
0:01:54]} 13. Nxc6 {[%clk 0:01:17.5]} 13... bxc6 {[%clk 0:01:01.2]} 14. Qxd6
{[%clk 0:00:57.7]} 14... Qxf2+ {[%clk 0:00:48.5]} 15. Kh1 {[%clk 0:00:58]} 15...
Ne3 {[%clk 0:00:16]} 16. Bf1 {[%clk 0:00:50.2]} 16... Nxf1 {[%clk 0:00:08.9]}
17. Rxf1 {[%clk 0:00:50.4]} 17... Qxc2 {[%clk 0:00:08.8]} 18. Qxc6 {[%clk
0:00:47.3]} 18... Rb8 {[%clk 0:00:06.8]} 19. Qc4 {[%clk 0:00:40.1]} 19... Qb3
{[%clk 0:00:05.7]} 20. Qxb3 {[%clk 0:00:39.4]} 20... Rxb3 {[%clk 0:00:06.6]} 21.
Rf2 {[%clk 0:00:39.7]} 21... Bb7 {[%clk 0:00:06.4]} 22. Rd1 {[%clk 0:00:39.5]}
22... h6 {[%clk 0:00:05.9]} 23. Rd7 {[%clk 0:00:39]} 23... Rb4 {[%clk
0:00:04.4]} 24. h3 {[%clk 0:00:37.2]} 24... Bxe4 {[%clk 0:00:04.3]} 25. Nxe4
{[%clk 0:00:37]} 25... Rxe4 {[%clk 0:00:05.2]} 26. b3 {[%clk 0:00:36.8]} 26...
Re5 {[%clk 0:00:04.4]} 27. Rd6 {[%clk 0:00:35.9]} 27... a5 {[%clk 0:00:04.8]}
28. Rb6 {[%clk 0:00:35.1]} 28... Rc8 {[%clk 0:00:04.1]} 29. Rb7 {[%clk
0:00:34.2]} 29... f5 {[%clk 0:00:04.2]} 30. Rd2 {[%clk 0:00:33.2]} 30... Re3
{[%clk 0:00:02.7]} 31. Kh2 {[%clk 0:00:31.6]} 31... Kh8 {[%clk 0:00:01.8]} 32.
Rdd7 {[%clk 0:00:30.9]} 32... Rg8 {[%clk 0:00:02.5]} 33. Rb5 {[%clk 0:00:31.2]}
33... Rc3 {[%clk 0:00:02.3]} 34. Re7 {[%clk 0:00:30.6]} 34... f4 {[%clk
0:00:02.5]} 35. Rxe6 {[%clk 0:00:30.4]} 35... Rc2 {[%clk 0:00:03.2]} 36. Rf5
{[%clk 0:00:25.7]} 36... Rd8 {[%clk 0:00:03.4]} 37. Rxf4 {[%clk 0:00:25.3]}
37... Rc3 {[%clk 0:00:03.9]} 38. Rb6 {[%clk 0:00:24.5]} 38... Rdd3 {[%clk
0:00:03.6]} 39. Rb5 {[%clk 0:00:23.4]} 39... Rxb3 {[%clk 0:00:04]} 40. Rxa5
{[%clk 0:00:23.6]} 40... Ra3 {[%clk 0:00:03.5]} 41. Ra7 {[%clk 0:00:21.9]} 41...
Rd5 {[%clk 0:00:03.9]} 42. Rg4 {[%clk 0:00:21.4]} 42... Rg5 {[%clk 0:00:04.2]}
43. Rxg5 {[%clk 0:00:21.6]} 43... hxg5 {[%clk 0:00:05.1]} 44. a5 {[%clk
0:00:17.1]} 44... Kh7 {[%clk 0:00:05.1]} 45. a6 {[%clk 0:00:17.2]} 45... Kh6
{[%clk 0:00:05.4]} 46. Kg1 {[%clk 0:00:17.7]} 46... Ra2 {[%clk 0:00:05.3]} 47.
Kf1 {[%clk 0:00:17.9]} 47... Kg6 {[%clk 0:00:05.5]} 48. Ra8 {[%clk 0:00:17.6]}
48... Kh7 {[%clk 0:00:05.1]} 49. g4 {[%clk 0:00:17.2]} 49... Kg6 {[%clk
0:00:05.3]} 50. Ke1 {[%clk 0:00:16]} 50... Ra3 {[%clk 0:00:05.7]} 51. Kd2 {[%clk
0:00:15.4]} 51... Rxh3 {[%clk 0:00:05.7]} 52. Kc2 {[%clk 0:00:15.5]} 52... Ra3
{[%clk 0:00:03.7]} 53. Kb2 {[%clk 0:00:15.9]} 53... Ra4 {[%clk 0:00:03.1]} 54.
Kb3 {[%clk 0:00:16]} 54... Ra5 {[%clk 0:00:02.1]} 55. Kb4 {[%clk 0:00:15.3]}
55... Ra1 {[%clk 0:00:03]} 56. Kb5 {[%clk 0:00:15.7]} 56... Kf6 {[%clk
0:00:03.1]} 57. Re8 {[%clk 0:00:14.6]} 57... Kf7 {[%clk 0:00:03.1]} 58. Re2
{[%clk 0:00:14.3]} 58... Rb1+ {[%clk 0:00:02.9]} 59. Kc6 {[%clk 0:00:14.5]}
59... Rc1+ {[%clk 0:00:03]} 60. Kb7 {[%clk 0:00:14.8]} 60... Rb1+ {[%clk
0:00:03.5]} 61. Ka8 {[%clk 0:00:15.1]} 61... Rb4 {[%clk 0:00:03.6]} 62. a7
{[%clk 0:00:14.4]} 62... Rxg4 {[%clk 0:00:03]} 63. Rb2 {[%clk 0:00:14.1]} 63...
Ra4 {[%clk 0:00:03.2]} 64. Kb7 {[%clk 0:00:14.3]} 64... Ke6 {[%clk 0:00:03.6]}
65. Rb6+ {[%clk 0:00:13]} 65... Ke5 {[%clk 0:00:02.5]} 66. Ra6 {[%clk
0:00:13.4]} 66... Rb4+ {[%clk 0:00:02.5]} 67. Kc7 {[%clk 0:00:13.9]} 67... Rc4+
{[%clk 0:00:02.9]} 68. Kd7 {[%clk 0:00:14.4]} 68... Rd4+ {[%clk 0:00:02.6]} 69.
Ke7 {[%clk 0:00:14.7]} 69... Kf4 {[%clk 0:00:02.1]} 70. a8=Q {[%clk 0:00:14.1]}
1-0

[Event "Early-Titled-Tuesday-Blitz-September-12-2023"]
[Site "Chess.com"]
[Date "2023.09.12"]
[Round "9"]
[White "Alexei_Gubajdullin"]
[Black "Aash20"]
[Result "0-1"]
[WhiteElo "2609"]
[BlackElo "2520"]
[TimeControl "180+1"]
[EndTime "9:46:39 PDT"]
[Termination "Aash20 won by resignation"]

1. d4 {[%clk 0:03:00]} 1... d5 {[%clk 0:02:59.8]} 2. Nf3 {[%clk 0:02:59.9]} 2...
Nf6 {[%clk 0:02:59.9]} 3. Bf4 {[%clk 0:02:59.6]} 3... c5 {[%clk 0:03:00.4]} 4.
e3 {[%clk 0:02:59.7]} 4... Nc6 {[%clk 0:03:00.8]} 5. Nbd2 {[%clk 0:02:59]} 5...
Qb6 {[%clk 0:02:58.7]} 6. dxc5 {[%clk 0:02:57]} 6... Qxb2 {[%clk 0:02:54.1]} 7.
c4 {[%clk 0:02:57.1]} 7... dxc4 {[%clk 0:02:51.5]} 8. Nxc4 {[%clk 0:02:56.2]}
8... Qc3+ {[%clk 0:02:49.1]} 9. Nfd2 {[%clk 0:02:56]} 9... Nb4 {[%clk
0:02:42.7]} 10. Rc1 {[%clk 0:02:53.5]} 10... Nd3+ {[%clk 0:02:39.3]} 11. Bxd3
{[%clk 0:02:47.3]} 11... Qxd3 {[%clk 0:02:40.2]} 12. Ne5 {[%clk 0:02:38.9]}
12... Qd5 {[%clk 0:02:34.5]} 13. O-O {[%clk 0:02:35]} 13... e6 {[%clk
0:02:26.4]} 14. Nb3 {[%clk 0:02:13.9]} 14... Be7 {[%clk 0:02:20.9]} 15. c6
{[%clk 0:02:13.9]} 15... O-O {[%clk 0:02:15.5]} 16. c7 {[%clk 0:02:12]} 16... b6
{[%clk 0:01:53.6]} 17. Qe2 {[%clk 0:02:07.1]} 17... Bb7 {[%clk 0:01:52.4]} 18.
f3 {[%clk 0:02:07]} 18... a5 {[%clk 0:01:27.8]} 19. Rfd1 {[%clk 0:02:06.1]}
19... Ba6 {[%clk 0:01:27]} 20. Qe1 {[%clk 0:01:46.5]} 20... Qb7 {[%clk
0:01:26.1]} 21. Nc6 {[%clk 0:01:44]} 21... Ba3 {[%clk 0:01:18.6]} 22. Rd8 {[%clk
0:01:24.3]} 22... Bxc1 {[%clk 0:01:10.1]} 23. Qxc1 {[%clk 0:01:20.2]} 23... Nd5
{[%clk 0:01:07.8]} 24. Bd6 {[%clk 0:01:18.8]} 24... Re8 {[%clk 0:00:46.5]} 25.
Rb8 {[%clk 0:01:08.4]} 25... Raxb8 {[%clk 0:00:43.1]} 26. cxb8=Q {[%clk
0:01:07.9]} 26... Rxb8 {[%clk 0:00:40.2]} 27. Nxb8 {[%clk 0:01:07.2]} 27... h5
{[%clk 0:00:38.9]} 28. e4 {[%clk 0:01:04.7]} 28... Nf6 {[%clk 0:00:36.7]} 29.
Qg5 {[%clk 0:01:01.9]} 29... Bc4 {[%clk 0:00:34.1]} 30. Be5 {[%clk 0:00:52.8]}
30... Ne8 {[%clk 0:00:33.5]} 31. Qd8 {[%clk 0:00:52]} 31... Bb5 {[%clk
0:00:31.9]} 32. Nd4 {[%clk 0:00:51.6]} 32... Ba4 {[%clk 0:00:29.9]} 33. h4
{[%clk 0:00:37.2]} 33... Qa7 {[%clk 0:00:20.3]} 34. Kh2 {[%clk 0:00:35.8]} 34...
Qb7 {[%clk 0:00:19.8]} 35. a3 {[%clk 0:00:35.4]} 35... g6 {[%clk 0:00:18.7]} 36.
Qg5 {[%clk 0:00:31.8]} 36... Kf8 {[%clk 0:00:11]} 37. Qf4 {[%clk 0:00:28.4]}
37... Ke7 {[%clk 0:00:10.6]} 38. Qg3 {[%clk 0:00:26.6]} 38... Kd8 {[%clk
0:00:10.2]} 39. Qg5+ {[%clk 0:00:24.3]} 39... Kc8 {[%clk 0:00:10.7]} 40. Qh6
{[%clk 0:00:23.3]} 40... Qe7 {[%clk 0:00:08.8]} 41. Qh8 {[%clk 0:00:22.7]} 41...
Bd7 {[%clk 0:00:07.2]} 42. Nbc6 {[%clk 0:00:21.7]} 42... Bxc6 {[%clk 0:00:07.1]}
43. Nxc6 {[%clk 0:00:21.5]} 43... Qd7 {[%clk 0:00:08]} 44. Nd4 {[%clk
0:00:20.1]} 44... Kb7 {[%clk 0:00:08.4]} 45. Qxe8 {[%clk 0:00:20.2]} 45... Qxe8
{[%clk 0:00:08]} 46. Bf6 {[%clk 0:00:18.8]} 46... Qa4 {[%clk 0:00:08]} 47. Ne2
{[%clk 0:00:17.2]} 47... Qxa3 {[%clk 0:00:08.1]} 48. Nf4 {[%clk 0:00:16.9]}
48... Qa2 {[%clk 0:00:08.7]} 49. Nh3 {[%clk 0:00:17.8]} 49... a4 {[%clk
0:00:09]} 50. Ng5 {[%clk 0:00:18.7]} 50... Qb1 {[%clk 0:00:09.4]} 51. Nxf7
{[%clk 0:00:18.6]} 51... a3 {[%clk 0:00:09.9]} 52. Nd6+ {[%clk 0:00:19.2]} 52...
Ka6 {[%clk 0:00:10]} 53. Nc4 {[%clk 0:00:19.4]} 53... a2 {[%clk 0:00:10.5]} 54.
Nd6 {[%clk 0:00:19.4]} 54... a1=Q {[%clk 0:00:10.8]} 55. Bxa1 {[%clk 0:00:18.9]}
55... Qxa1 {[%clk 0:00:11.1]} 56. Nf7 {[%clk 0:00:17.9]} 56... Qf6 {[%clk
0:00:11.1]} 57. Ng5 {[%clk 0:00:17.2]} 57... Qf4+ {[%clk 0:00:11.2]} 58. g3
{[%clk 0:00:16.7]} 58... Qd2+ {[%clk 0:00:10.9]} 59. Kh3 {[%clk 0:00:16.8]}
59... b5 {[%clk 0:00:11.8]} 60. Nxe6 {[%clk 0:00:16.9]} 60... Qd7 {[%clk
0:00:11.9]} 61. g4 {[%clk 0:00:16.6]} 61... Qxe6 {[%clk 0:00:12.4]} 62. Kg3
{[%clk 0:00:15.6]} 62... hxg4 {[%clk 0:00:13.3]} 63. fxg4 {[%clk 0:00:15.3]}
63... Qxe4 {[%clk 0:00:13.8]} 64. h5 {[%clk 0:00:15.1]} 64... gxh5 {[%clk
0:00:14.6]} 65. gxh5 {[%clk 0:00:16]} 65... Qf5 {[%clk 0:00:14.6]} 66. h6 {[%clk
0:00:16.9]} 66... Qg6+ {[%clk 0:00:14.8]} 67. Kf4 {[%clk 0:00:16.5]} 67... Qxh6+
{[%clk 0:00:15.7]} 68. Ke5 {[%clk 0:00:17.3]} 68... Qc6 {[%clk 0:00:16.3]} 0-1

[Event "Early-Titled-Tuesday-Blitz-September-12-2023"]
[Site "Chess.com"]
[Date "2023.09.12"]
[Round "9"]
[White "Apocalyps999"]
[Black "HrvojeZagreb"]
[Result "0-1"]
[WhiteElo "2303"]
[BlackElo "2272"]
[TimeControl "180+1"]
[EndTime "9:46:50 PDT"]
[Termination "HrvojeZagreb won by checkmate"]

1. e4 {[%clk 0:03:00.9]} 1... c5 {[%clk 0:02:57.5]} 2. c3 {[%clk 0:02:58.5]}
2... d5 {[%clk 0:02:56.9]} 3. exd5 {[%clk 0:02:57.5]} 3... Qxd5 {[%clk
0:02:57.8]} 4. d4 {[%clk 0:02:58.1]} 4... Nf6 {[%clk 0:02:53]} 5. Nf3 {[%clk
0:02:56.3]} 5... e6 {[%clk 0:02:53.1]} 6. Na3 {[%clk 0:02:50.3]} 6... cxd4
{[%clk 0:02:50.7]} 7. Nb5 {[%clk 0:02:44.9]} 7... Na6 {[%clk 0:02:39.7]} 8.
Nbxd4 {[%clk 0:02:39.2]} 8... Be7 {[%clk 0:02:31.1]} 9. Be3 {[%clk 0:02:30.6]}
9... O-O {[%clk 0:02:28.4]} 10. Bxa6 {[%clk 0:02:14.7]} 10... bxa6 {[%clk
0:02:27.6]} 11. O-O {[%clk 0:02:15.2]} 11... Bb7 {[%clk 0:02:25.7]} 12. Qa4
{[%clk 0:02:10.8]} 12... Rac8 {[%clk 0:02:22.9]} 13. Rad1 {[%clk 0:02:07.3]}
13... Qh5 {[%clk 0:02:12.2]} 14. h3 {[%clk 0:02:03.2]} 14... Nd5 {[%clk
0:02:09.3]} 15. Rfe1 {[%clk 0:01:48.2]} 15... Bf6 {[%clk 0:02:03.6]} 16. Bd2
{[%clk 0:01:23.2]} 16... e5 {[%clk 0:01:56.5]} 17. Ne2 {[%clk 0:01:12.1]} 17...
Nb6 {[%clk 0:01:43.8]} 18. Qg4 {[%clk 0:00:46.7]} 18... Qxg4 {[%clk 0:01:41.8]}
19. hxg4 {[%clk 0:00:47.6]} 19... Nc4 {[%clk 0:01:24.9]} 20. Bc1 {[%clk
0:00:45.8]} 20... e4 {[%clk 0:01:05.4]} 21. Nfd4 {[%clk 0:00:40.8]} 21... g6
{[%clk 0:01:03.4]} 22. Ng3 {[%clk 0:00:38.8]} 22... Rfe8 {[%clk 0:01:00.8]} 23.
g5 {[%clk 0:00:30.2]} 23... Bg7 {[%clk 0:00:59.4]} 24. b3 {[%clk 0:00:28.6]}
24... Nb6 {[%clk 0:00:52.2]} 25. c4 {[%clk 0:00:28.6]} 25... a5 {[%clk
0:00:49.6]} 26. Nde2 {[%clk 0:00:26.4]} 26... a4 {[%clk 0:00:47.5]} 27. Nf4
{[%clk 0:00:15.3]} 27... axb3 {[%clk 0:00:46.2]} 28. axb3 {[%clk 0:00:16.2]}
28... a5 {[%clk 0:00:45.2]} 29. Ba3 {[%clk 0:00:14.9]} 29... a4 {[%clk 0:00:44]}
30. c5 {[%clk 0:00:15.3]} 30... Be5 {[%clk 0:00:33.4]} 31. cxb6 {[%clk
0:00:14.8]} 31... Bxf4 {[%clk 0:00:33.6]} 32. Ne2 {[%clk 0:00:15.1]} 32... Bxg5
{[%clk 0:00:32.9]} 33. bxa4 {[%clk 0:00:15]} 33... e3 {[%clk 0:00:33.3]} 34. f4
{[%clk 0:00:14.4]} 34... Bh4 {[%clk 0:00:32.7]} 35. g3 {[%clk 0:00:14.2]} 35...
Bf6 {[%clk 0:00:30]} 36. a5 {[%clk 0:00:14.2]} 36... Ba6 {[%clk 0:00:29.8]} 37.
Nd4 {[%clk 0:00:12.5]} 37... e2 {[%clk 0:00:29.4]} 38. Rd2 {[%clk 0:00:11.7]}
38... Red8 {[%clk 0:00:25.7]} 39. Bb2 {[%clk 0:00:10]} 39... Rc4 {[%clk
0:00:24.1]} 40. Rexe2 {[%clk 0:00:06.8]} 40... Bxd4+ {[%clk 0:00:22.8]} 41. Bxd4
{[%clk 0:00:06.4]} 41... Rcxd4 {[%clk 0:00:23.1]} 42. Rxd4 {[%clk 0:00:06.4]}
42... Rxd4 {[%clk 0:00:23.4]} 43. Re8+ {[%clk 0:00:07.3]} 43... Kg7 {[%clk
0:00:23.4]} 44. Ra8 {[%clk 0:00:07.5]} 44... Bb7 {[%clk 0:00:22.5]} 45. Rb8
{[%clk 0:00:07.1]} 45... Rd7 {[%clk 0:00:21.4]} 46. Kf2 {[%clk 0:00:05.7]} 46...
h5 {[%clk 0:00:21.3]} 47. Ke3 {[%clk 0:00:04.1]} 47... f6 {[%clk 0:00:21.5]} 48.
Re8 {[%clk 0:00:04.3]} 48... g5 {[%clk 0:00:20.6]} 49. fxg5 {[%clk 0:00:04.2]}
49... fxg5 {[%clk 0:00:21.5]} 50. Re5 {[%clk 0:00:04.7]} 50... Kg6 {[%clk
0:00:20.9]} 51. Re6+ {[%clk 0:00:04.6]} 51... Kf5 {[%clk 0:00:20.6]} 52. Rh6
{[%clk 0:00:05]} 52... Re7+ {[%clk 0:00:18.2]} 53. Kf2 {[%clk 0:00:05.1]} 53...
Re5 {[%clk 0:00:17]} 54. Rxh5 {[%clk 0:00:02.8]} 54... Rxa5 {[%clk 0:00:15.9]}
55. Rh7 {[%clk 0:00:03.7]} 55... Ra2+ {[%clk 0:00:14.7]} 56. Kg1 {[%clk
0:00:03.1]} 56... Bf3 {[%clk 0:00:11.7]} 57. Rf7+ {[%clk 0:00:02.6]} 57... Kg4
{[%clk 0:00:11.7]} 58. b7 {[%clk 0:00:02.4]} 58... Rb2 {[%clk 0:00:11.8]} 59.
b8=Q {[%clk 0:00:02.2]} 59... Rxb8 {[%clk 0:00:11.2]} 60. Kf2 {[%clk 0:00:03.1]}
60... Rb2+ {[%clk 0:00:11.1]} 61. Ke3 {[%clk 0:00:04]} 61... Re2+ {[%clk
0:00:11.4]} 62. Kd3 {[%clk 0:00:04.1]} 62... Kxg3 {[%clk 0:00:11.2]} 63. Rg7
{[%clk 0:00:05]} 63... g4 {[%clk 0:00:11.4]} 64. Kd4 {[%clk 0:00:04.4]} 64...
Re6 {[%clk 0:00:11.1]} 65. Rg8 {[%clk 0:00:05.3]} 65... Kf2 {[%clk 0:00:09.6]}
66. Rg7 {[%clk 0:00:06.2]} 66... g3 {[%clk 0:00:09.5]} 67. Rg8 {[%clk
0:00:07.1]} 67... Re4+ {[%clk 0:00:09.5]} 68. Kd5 {[%clk 0:00:06.8]} 68... Rg4+
{[%clk 0:00:09.1]} 69. Kd6 {[%clk 0:00:07.7]} 69... Rxg8 {[%clk 0:00:09.5]} 70.
Kc7 {[%clk 0:00:08.6]} 70... g2 {[%clk 0:00:10.2]} 71. Kb6 {[%clk 0:00:09.5]}
71... g1=Q {[%clk 0:00:11.1]} 72. Ka7 {[%clk 0:00:10.4]} 72... Qc1 {[%clk
0:00:09.8]} 73. Kb6 {[%clk 0:00:11.3]} 73... Rb8+ {[%clk 0:00:09.3]} 74. Ka5
{[%clk 0:00:12.2]} 74... Qa1# {[%clk 0:00:08.8]} 0-1